bitfinex/quotes_BTCUSD_20250619
["timestamp","ask_amount","ask_price","bid_price","bid_amount"]
[1750312879448,0.00952045,105030.0,105020.0,0.4682248]
[1750312879681,0.26091004,105040.0,105030.0,0.20946349]
[1750312879955,0.26981014,105040.0,105030.0,0.20946349]
[1750312880206,0.26029032,105040.0,105030.0,0.19042178]
[1750312880422,0.26029032,105040.0,105030.0,0.19994286]
[1750312881497,0.26029032,105040.0,105030.0,0.20946385]
[1750312881708,0.26229032,105040.0,105030.0,0.20946385]
[1750312882574,0.28575259,105040.0,105030.0,0.20946385]
[1750312882797,0.28574575,105040.0,105030.0,0.21898475]
[1750312883674,0.27622575,105040.0,105030.0,0.20946385]
[1750312883912,0.27622575,105040.0,105020.0,0.30394244]
[1750312884127,0.20946367,105030.0,105020.0,0.20948353]
[1750312884372,0.20946367,105030.0,105020.0,0.41348516]
[1750312885972,0.20946367,105030.0,105020.0,0.41448516]
[1750312886833,0.20946367,105030.0,105020.0,0.44258516]
[1750312888811,0.0285627,105030.0,105020.0,0.46918516]
[1750312889039,0.0285627,105030.0,105020.0,0.48822815]
[1750312889271,0.01904171,105030.0,105020.0,0.48822761]
[1750312890634,0.20946349,105030.0,105020.0,0.001]
[1750312890850,0.23598353,105020.0,105010.0,0.35462084]
[1750312891070,0.28534609,105020.0,105010.0,0.40390365]
[1750312891510,0.23224609,105020.0,105010.0,0.41342637]
[1750312891731,0.23224609,105020.0,105010.0,0.422949]
[1750312892186,0.23224609,105020.0,105010.0,0.424949]
[1750312892407,0.23224609,105020.0,105010.0,0.427949]
[1750312892630,0.23224609,105020.0,105010.0,0.425949]
[1750312892852,0.04180618,105020.0,105010.0,0.43247089]
[1750312893079,0.01904362,105020.0,105010.0,0.48867089]
[1750312893725,0.20948353,105020.0,105010.0,0.47914863]
[1750312893949,0.21900552,105020.0,105010.0,0.33403107]
[1750312894176,0.21900552,105020.0,105010.0,0.48879052]
[1750312894177,0.05133676,105020.0,105010.0,0.48879052]
[1750312894396,0.02856561,105020.0,105010.0,0.48879052]
[1750312894621,0.02856561,105020.0,105010.0,0.33403052]
[1750312894840,0.21900552,105020.0,105010.0,0.47926826]
[1750312895083,0.24177667,105020.0,105010.0,0.48879015]
[1750312895301,0.05133676,105020.0,105010.0,0.48879015]
[1750312895514,0.02856561,105020.0,105010.0,0.48879015]
[1750312895802,0.02856561,105020.0,105010.0,0.29427015]
[1750312896038,0.01904317,105020.0,105010.0,0.48879015]
[1750312896258,0.02856434,105020.0,105010.0,0.48879015]
[1750312896554,0.02856425,105020.0,105010.0,0.48879015]
[1750312897032,0.00952117,105020.0,105010.0,0.48879015]
[1750312897251,0.01904244,105020.0,105010.0,0.48879015]
[1750312897470,0.02856389,105020.0,105010.0,0.48879015]
[1750312897927,0.03808561,105020.0,105010.0,0.48879015]
[1750312899636,0.04760742,105020.0,105010.0,0.48879015]
[1750312900704,0.03808561,105020.0,105010.0,0.48879015]
[1750312901124,0.02856389,105020.0,105010.0,0.48879015]
[1750312901339,0.03808552,105020.0,105010.0,0.48879015]
[1750312902268,0.04760733,105020.0,105010.0,0.48879015]
[1750312902723,0.03808552,105020.0,105010.0,0.48879015]
[1750312903375,0.04760733,105020.0,105010.0,0.48879015]
[1750312903847,0.03808552,105020.0,105010.0,0.48879015]
[1750312904073,0.04760733,105020.0,105010.0,0.48879015]
[1750312904379,0.02856389,105020.0,105010.0,0.48879015]
[1750312904593,0.03808552,105020.0,105010.0,0.48879015]
[1750312904794,0.04760733,105020.0,105010.0,0.48879015]
[1750312905004,0.03808552,105020.0,105010.0,0.48879015]
[1750312905210,0.02856389,105020.0,105010.0,0.48879015]
[1750312905829,0.01904253,105020.0,105010.0,0.48879015]
[1750312906036,0.00952117,105020.0,105010.0,0.48879015]
[1750312906249,0.02856416,105020.0,105010.0,0.48879015]
[1750312906907,0.03808588,105020.0,105010.0,0.48879015]
[1750312908543,0.02856416,105020.0,105010.0,0.48879015]
[1750312908992,0.01904262,105020.0,105010.0,0.58503191]
[1750312909213,0.02856425,105020.0,105010.0,0.58503191]
[1750312909635,0.01904262,105020.0,105010.0,0.58503191]
[1750312909851,0.02856425,105020.0,105010.0,0.58503191]
[1750312910306,0.01904262,105020.0,105010.0,0.58503191]
[1750312910535,0.07032833,105030.0,105020.0,0.2190048]
[1750312910766,0.04699152,105030.0,105020.0,0.2190048]
[1750312910997,0.04699156,105030.0,105020.0,0.2190048]
[1750312911429,0.05651264,105030.0,105020.0,0.2471048]
[1750312912175,0.05851264,105030.0,105020.0,0.2471048]
[1750312912589,0.02042922,105030.0,105020.0,0.2741048]
[1750312912801,0.02042895,105030.0,105020.0,0.37034656]
[1750312913627,0.01090868,105030.0,105020.0,0.37034656]
[1750312914719,0.00890868,105030.0,105020.0,0.37034656]
[1750312914928,0.09383898,105040.0,105030.0,0.27318394]
[1750312915141,0.12057034,105040.0,105030.0,0.46766394]
[1750312915774,0.32049417,105040.0,105030.0,0.41346412]
[1750312916238,0.32249417,105040.0,105030.0,0.41346412]
[1750312916658,0.32249402,105040.0,105030.0,0.41346412]
[1750312917304,0.32249402,105040.0,105030.0,0.40394349]
[1750312917498,0.3129742,105040.0,105030.0,0.39442277]
[1750312918000,0.3412742,105040.0,105030.0,0.39442277]
[1750312918211,0.33175411,105040.0,105030.0,0.39442277]
[1750312918934,0.30345411,105040.0,105030.0,0.40394367]
[1750312919964,0.30345294,105040.0,105030.0,0.39442277]
[1750312920413,0.29393276,105040.0,105030.0,0.19448]
[1750312920596,0.29393281,105040.0,105030.0,0.19448]
[1750312921558,0.07625504,105040.0,105030.0,0.47658502]
[1750312921762,0.06298036,105040.0,105030.0,0.47658502]
[1750312921969,0.07250058,105040.0,105030.0,0.47658502]
[1750312922407,0.06298058,105040.0,105030.0,0.47658502]
[1750312922613,0.06098058,105040.0,105030.0,0.47658502]
[1750312922859,0.07050049,105040.0,105030.0,0.47658502]
[1750312923053,0.08002049,105040.0,105030.0,0.47658502]
[1750312923263,0.06098058,105040.0,105030.0,0.47658502]
[1750312924492,0.07050058,105040.0,105030.0,0.47658502]
[1750312924911,0.07049885,105040.0,105030.0,0.47658502]
[1750312926827,0.06097885,105040.0,105030.0,0.47658502]
[1750312927585,0.06097814,105040.0,105030.0,0.47658502]
[1750312927783,0.05145832,105040.0,105030.0,0.47658502]
[1750312928006,0.07049795,105040.0,105030.0,0.47658502]
[1750312928217,0.08001795,105040.0,105030.0,0.47658502]
[1750312928429,0.07049795,105040.0,105030.0,0.47658502]
[1750312929734,0.07049701,105040.0,105030.0,0.47658502]
[1750312929946,0.08001701,105040.0,105030.0,0.47658502]
[1750312930240,0.07049701,105040.0,105030.0,0.47658502]
[1750312930449,0.07049754,105040.0,105030.0,0.47658502]
[1750312932466,0.08097763,105040.0,105030.0,0.47658502]
[1750312932690,0.07145791,105040.0,105030.0,0.47658502]
[1750312933565,0.05241892,105040.0,105030.0,0.47658502]
[1750312933807,0.07145782,105040.0,105030.0,0.47658502]
[1750312933990,0.06193828,105040.0,105030.0,0.47658502]
[1750312934236,0.07145773,105040.0,105030.0,0.47658502]
[1750312934890,0.08097736,105040.0,105030.0,0.47658502]
[1750312935298,0.05241892,105040.0,105030.0,0.47658502]
[1750312935527,0.04351227,105040.0,105030.0,0.57282678]
[1750312935726,0.02005,105040.0,105030.0,0.58736763]
[1750312936354,0.02005,105040.0,105030.0,0.58744763]
[1750312936990,0.02005,105040.0,105030.0,0.58944763]
[1750312938074,0.02005,105040.0,105030.0,0.59144763]
[1750312938286,0.04389603,105040.0,105030.0,0.57694678]
[1750312938497,0.02005,105040.0,105030.0,0.57294678]
[1750312938705,0.03908936,105040.0,105030.0,0.38234678]
[1750312938939,0.03908936,105040.0,105030.0,0.57694678]
[1750312939148,0.03908936,105040.0,105030.0,0.57994678]
[1750312939555,0.02956954,105040.0,105030.0,0.57994678]
[1750312939791,0.03908926,105040.0,105030.0,0.57994678]
[1750312940029,0.02956954,105040.0,105030.0,0.57994678]
[1750312940500,0.03908926,105040.0,105030.0,0.57994678]
[1750312942379,0.04860926,105040.0,105030.0,0.57994678]
[1750312942595,0.03908926,105040.0,105030.0,0.57994678]
[1750312942826,0.07208447,105040.0,105030.0,0.57990678]
[1750312943249,0.08160447,105040.0,105030.0,0.57990678]
[1750312943941,0.07208447,105040.0,105030.0,0.57990678]
[1750312944181,0.08160447,105040.0,105030.0,0.57990678]
[1750312945097,0.07208447,105040.0,105030.0,0.57990678]
[1750312945801,0.06256447,105040.0,105030.0,0.57990678]
[1750312946023,0.07208429,105040.0,105030.0,0.57990678]
[1750312946238,0.08160419,105040.0,105030.0,0.57990678]
[1750312946941,0.07208419,105040.0,105030.0,0.57990678]
[1750312947568,0.0816041,105040.0,105030.0,0.57990678]
[1750312948190,0.0911241,105040.0,105030.0,0.57990678]
[1750312948395,0.0816041,105040.0,105030.0,0.57990678]
[1750312950461,0.0911241,105040.0,105030.0,0.42510678]
[1750312950684,0.0911241,105040.0,105030.0,0.57978678]
[1750312950909,0.0816041,105040.0,105030.0,0.57978678]
[1750312951558,0.07208419,105040.0,105030.0,0.57978678]
[1750312952521,0.06256447,105040.0,105030.0,0.57978678]
[1750312954426,0.05304484,105040.0,105030.0,0.57978678]
[1750312955149,0.06256456,105040.0,105030.0,0.57978678]
[1750312956104,0.05304484,105040.0,105030.0,0.57978678]
[1750312956753,0.05304484,105040.0,105030.0,0.80842678]
[1750312957796,0.05304484,105040.0,105030.0,0.80754906]
[1750312961526,0.05304475,105040.0,105030.0,0.80754906]
[1750312962046,0.0435253,105040.0,105030.0,0.80754906]
[1750312963502,0.05304475,105040.0,105030.0,0.80754906]
[1750312963916,0.06256429,105040.0,105030.0,0.80754906]
[1750312964121,0.07148781,105040.0,105030.0,0.80754906]
[1750312964335,0.06196827,105040.0,105030.0,0.57890906]
[1750312964549,0.02279365,105050.0,105040.0,0.20944337]
[1750312964760,0.19990506,105050.0,105030.0,0.36630471]
[1750312964990,0.2405457,105050.0,105040.0,0.39412374]
[1750312965183,0.2939457,105050.0,105040.0,0.40364374]
[1750312965431,0.31780071,105050.0,105040.0,0.40364374]
[1750312965621,0.31780071,105050.0,105040.0,0.41316365]
[1750312965843,0.31780071,105050.0,105040.0,0.40364374]
[1750312966257,0.31780071,105050.0,105040.0,0.40564374]
[1750312966464,0.31780071,105050.0,105040.0,0.40764374]
[1750312967456,0.31780013,105050.0,105040.0,0.39812374]
[1750312969083,0.31780013,105050.0,105040.0,0.19816]
[1750312970366,0.31779297,105050.0,105040.0,0.19816]
[1750312972658,0.31779297,105050.0,105040.0,0.04372]
[1750312974005,0.31783297,105050.0,105040.0,0.04372]
[1750312974672,0.34632564,105050.0,105040.0,0.04372]
[1750312975311,0.34631886,105050.0,105040.0,0.04372]
[1750312975680,0.31486483,105050.0,105040.0,0.04372]
[1750312976462,0.32378077,105050.0,105040.0,0.04372]
[1750312977179,0.32377987,105050.0,105040.0,0.04372]
[1750312978466,0.20946331,105030.0,105020.0,0.42775991]
[1750312978677,0.20946331,105030.0,105020.0,0.64096362]
[1750312978678,0.21837804,105030.0,105020.0,0.64096362]
[1750312978894,0.24120015,105030.0,105020.0,0.64096362]
[1750312979518,0.21837804,105030.0,105020.0,0.65048525]
[1750312979993,0.21837804,105030.0,105020.0,0.67252824]
[1750312980244,0.02795626,105030.0,105020.0,0.67252824]
[1750312980444,0.04699833,105030.0,105020.0,0.67252824]
[1750312980892,0.04699833,105030.0,105020.0,0.67552824]
[1750312981099,0.04699833,105030.0,105020.0,0.66952824]
[1750312981301,0.04699147,105030.0,105020.0,0.66952824]
[1750312981521,0.0380836,105030.0,105020.0,0.67152824]
[1750312982289,0.22854538,105030.0,105020.0,0.66200679]
[1750312982714,0.06193763,105030.0,105020.0,0.67152824]
[1750312982928,0.08097916,105030.0,105020.0,0.66200679]
[1750312983165,0.07145853,105030.0,105020.0,0.66200679]
[1750312983378,0.06193763,105030.0,105020.0,0.64296362]
[1750312983802,0.06193763,105030.0,105020.0,0.64296371]
[1750312984018,0.06193763,105030.0,105020.0,0.59056371]
[1750312984481,0.06193763,105030.0,105020.0,0.60008543]
[1750312987110,0.06193763,105030.0,105020.0,0.60960706]
[1750312987322,0.01908189,105030.0,105020.0,0.67272806]
[1750312987741,0.01908189,105030.0,105020.0,0.67272761]
[1750312987966,0.02860225,105030.0,105020.0,0.67272761]
[1750312988178,0.03812324,105030.0,105020.0,0.67272761]
[1750312991692,0.04812324,105030.0,105020.0,0.67272761]
[1750312993178,0.03860225,105030.0,105020.0,0.67272761]
[1750312993383,0.02908135,105030.0,105020.0,0.67272761]
[1750312993583,0.03860225,105030.0,105020.0,0.67272761]
[1750312994767,0.03860225,105030.0,105020.0,0.48780761]
[1750312998659,0.02908135,105030.0,105020.0,0.48780761]
[1750312999154,0.02280423,105040.0,105030.0,0.00952108]
[1750312999385,0.19932527,105040.0,105030.0,0.00952108]
[1750312999679,0.2221295,105040.0,105030.0,0.00952108]
[1750312999901,0.01904171,105030.0,105020.0,0.47828589]
[1750313000330,0.01904135,105030.0,105020.0,0.47728589]
[1750313000537,0.01904081,105030.0,105020.0,0.47728589]
[1750313000743,0.00952027,105030.0,105020.0,0.47728589]
[1750313000965,0.05136404,105040.0,105030.0,0.21898385]
[1750313001177,0.22786892,105040.0,105030.0,0.20946331]
[1750313001388,0.25067315,105040.0,105030.0,0.20946331]
[1750313001603,0.25067315,105040.0,105030.0,0.19994268]
[1750313001812,0.25167315,105040.0,105030.0,0.20946349]
[1750313002020,0.24215343,105040.0,105030.0,0.20946349]
[1750313002250,0.23263343,105040.0,105030.0,0.20946349]
[1750313003313,0.23263278,105040.0,105030.0,0.20946349]
[1750313004512,0.03270904,105040.0,105030.0,0.28170466]
[1750313004725,0.00990481,105040.0,105030.0,0.28170466]
[1750313004933,0.001,105040.0,105030.0,0.37794642]
[1750313005764,0.001,105040.0,105030.0,0.39248727]
[1750313007375,4e-05,105050.0,105040.0,0.2455631]
[1750313007572,4e-05,105050.0,105040.0,0.56152486]
[1750313008711,4e-05,105050.0,105040.0,0.56352486]
[1750313015858,4e-05,105050.0,105040.0,0.57806571]
[1750313017298,4e-05,105050.0,105040.0,0.86956571]
[1750313018909,0.07129998,105070.0,105060.0,0.2189214]
[1750313019262,0.07129998,105070.0,105060.0,0.4130014]
[1750313019263,0.03323157,105070.0,105060.0,0.4130014]
[1750313019418,0.03323166,105070.0,105060.0,0.56214316]
[1750313019827,0.04274849,105070.0,105060.0,0.56214316]
[1750313020040,0.06178269,105070.0,105060.0,0.56214316]
[1750313020496,0.0542655,105070.0,105060.0,0.56214316]
[1750313020703,0.04474858,105070.0,105060.0,0.56214316]
[1750313020902,0.03823166,105070.0,105060.0,0.56214316]
[1750313021339,0.03823157,105070.0,105060.0,0.56214316]
[1750313021551,0.02871493,105070.0,105060.0,0.56214316]
[1750313021755,0.03823166,105070.0,105060.0,0.56214316]
[1750313022271,0.04774849,105070.0,105060.0,0.56214316]
[1750313023204,0.04474849,105070.0,105060.0,0.56214316]
[1750313023613,0.05526541,105070.0,105060.0,0.56214316]
[1750313024006,0.05326541,105070.0,105060.0,0.56214316]
[1750313024722,0.03423166,105070.0,105060.0,0.56214316]
[1750313025260,0.04374858,105070.0,105060.0,0.56214316]
[1750313025497,0.05326568,105070.0,105060.0,0.56214316]
[1750313025862,0.06278287,105070.0,105060.0,0.56214316]
[1750313026061,0.05326568,105070.0,105060.0,0.56214316]
[1750313026270,0.05326559,105070.0,105060.0,0.56214316]
[1750313026476,0.06278278,105070.0,105060.0,0.56214316]
[1750313027143,0.07230006,105070.0,105060.0,0.56214316]
[1750313027357,0.07230006,105070.0,105060.0,0.50924316]
[1750313029961,0.0723007,105070.0,105060.0,0.50924316]
[1750313031727,0.07230124,105070.0,105060.0,0.50924316]
[1750313032183,0.06278378,105070.0,105060.0,0.50924316]
[1750313032969,0.07230124,105070.0,105060.0,0.50924316]
[1750313033870,0.05326641,105070.0,105060.0,0.50924316]
[1750313034137,0.04374913,105070.0,105060.0,0.50924316]
[1750313035295,0.04374913,105070.0,105060.0,0.56224316]
[1750313035714,0.04374867,105070.0,105060.0,0.56224316]
[1750313036023,0.05326586,105070.0,105060.0,0.56224316]
[1750313036848,0.04374867,105070.0,105060.0,0.56224316]
[1750313037567,0.02959695,105070.0,105060.0,0.56224316]
[1750313038048,0.03911423,105070.0,105060.0,0.56224316]
[1750313038735,0.02959695,105070.0,105060.0,0.56224316]
[1750313038973,0.03911423,105070.0,105060.0,0.56224316]
[1750313039238,0.04349859,105070.0,105060.0,0.56224316]
[1750313039457,0.02446485,105070.0,105060.0,0.56224316]
[1750313039671,0.00104611,105070.0,105060.0,0.56224316]
[1750313040304,0.00104611,105070.0,105060.0,0.57678401]
[1750313040564,0.00104611,105070.0,105060.0,0.57778401]
[1750313040798,4.611e-05,105070.0,105060.0,0.57778401]
[1750313041213,4.611e-05,105070.0,105060.0,0.57878401]
[1750313043796,4.611e-05,105070.0,105060.0,0.87028401]
[1750313047833,0.00956275,105070.0,105060.0,0.87040401]
[1750313048040,4.611e-05,105070.0,105060.0,0.87040401]
[1750313054441,4.611e-05,105070.0,105060.0,0.67620401]
[1750313054685,4.611e-05,105070.0,105060.0,0.87048401]
[1750313057802,4.611e-05,105070.0,105060.0,0.87072401]
[1750313076993,4.611e-05,105070.0,105060.0,0.67620401]
[1750313077202,4.611e-05,105070.0,105060.0,0.87076401]
[1750313082756,4.611e-05,105070.0,105060.0,0.67620401]
[1750313082959,4.611e-05,105070.0,105060.0,0.87068401]
[1750313086234,0.0285,105080.0,105070.0,0.21890049]
[1750313086451,0.0285,105080.0,105070.0,0.31514225]
[1750313086910,0.03801628,105080.0,105070.0,0.32465908]
[1750313087325,0.04753238,105080.0,105070.0,0.32465908]
[1750313087759,0.00951601,105080.0,105070.0,0.32465908]
[1750313088462,0.0190322,105080.0,105070.0,0.32465908]
[1750313088679,0.02003193,105080.0,105070.0,0.32465908]
[1750313089482,0.02954803,105080.0,105070.0,0.32465908]
[1750313090490,0.02003193,105080.0,105070.0,0.36449908]
[1750313092814,0.01051592,105080.0,105070.0,0.36449908]
[1750313093589,0.02003193,105080.0,105070.0,0.36449908]
[1750313093794,0.01051592,105080.0,105070.0,0.36449908]
[1750313094182,0.01051583,105080.0,105070.0,0.36449908]
[1750313094385,0.001,105080.0,105070.0,0.42169908]
[1750313096710,0.01051574,105080.0,105070.0,0.42169908]
[1750313097148,0.001,105080.0,105070.0,0.42169908]
[1750313098214,0.00990622,105080.0,105070.0,0.42169908]
[1750313098640,0.01942205,105080.0,105070.0,0.42169908]
[1750313100040,0.00990622,105080.0,105070.0,0.42169908]
[1750313100461,0.01942205,105080.0,105070.0,0.42169908]
[1750313100910,0.02893806,105080.0,105070.0,0.42169908]
[1750313101119,0.02893806,105080.0,105070.0,0.36449908]
[1750313102191,0.01942205,105080.0,105070.0,0.36449908]
[1750313102409,0.02893806,105080.0,105070.0,0.36449908]
[1750313102631,0.01942205,105080.0,105070.0,0.36449908]
[1750313103528,0.00990622,105080.0,105070.0,0.42089908]
[1750313105259,0.01942196,105080.0,105070.0,0.42089908]
[1750313105470,0.00990106,105080.0,105070.0,0.42089908]
[1750313108268,0.001,105080.0,105070.0,0.42089908]
[1750313108485,0.01941664,105080.0,105070.0,0.42089908]
[1750313109588,0.02893265,105080.0,105070.0,0.42089908]
[1750313109799,0.03827753,105080.0,105070.0,0.36449908]
[1750313110017,0.02876134,105080.0,105070.0,0.36449908]
[1750313110237,0.02876125,105080.0,105070.0,0.36449908]
[1750313111223,0.01986035,105080.0,105070.0,0.36449908]
[1750313111432,0.02876052,105080.0,105070.0,0.36449908]
[1750313112917,0.03827662,105080.0,105070.0,0.36449908]
[1750313114055,0.04779281,105080.0,105070.0,0.36449908]
[1750313114257,0.03827662,105080.0,105070.0,0.36449908]
[1750313114770,0.03827662,105080.0,105070.0,0.65599908]
[1750313115548,0.24764062,105080.0,105070.0,0.64648271]
[1750313115784,0.31602716,105080.0,105070.0,0.80072271]
[1750313116006,0.03806794,105070.0,105060.0,0.51042149]
[1750313116218,0.02855057,105070.0,105060.0,0.81030098]
[1750313116445,0.04696602,105070.0,105060.0,0.81030098]
[1750313117312,0.04696602,105070.0,105060.0,0.81130098]
[1750313118466,0.03806785,105070.0,105060.0,0.81230098]
[1750313118898,0.04758522,105070.0,105060.0,0.81230098]
[1750313120688,0.04758522,105070.0,105060.0,0.52080098]
[1750313120904,0.03806785,105070.0,105060.0,0.52080098]
[1750313121119,0.02855057,105070.0,105060.0,0.52080098]
[1750313121347,0.04696029,105070.0,105060.0,0.52080098]
[1750313122576,0.05647766,105070.0,105060.0,0.52080098]
[1750313123640,0.05647699,105070.0,105060.0,0.52080098]
[1750313125769,0.05647573,105070.0,105060.0,0.52080098]
[1750313126236,0.03647573,105070.0,105060.0,0.52080098]
[1750313126456,0.03647573,105070.0,105060.0,0.32668098]
[1750313126670,0.03647573,105070.0,105060.0,0.81226098]
[1750313126671,0.05550966,105070.0,105060.0,0.81226098]
[1750313126879,0.04599229,105070.0,105060.0,0.81226098]
[1750313128597,0.04599279,105070.0,105060.0,0.81226098]
[1750313128807,0.04599279,105070.0,105060.0,0.04168]
[1750313128808,0.27487468,105070.0,105060.0,0.04168]
[1750313129022,0.29764716,105070.0,105060.0,0.19608]
[1750313129231,0.31542966,105070.0,105060.0,0.002]
[1750313130539,0.31542351,105070.0,105060.0,0.002]
[1750313131380,0.40722675,105070.0,105060.0,0.002]
[1750313132207,0.40722675,105070.0,105050.0,0.71414]
[1750313132208,0.22678558,105060.0,105050.0,0.71414]
[1750313132407,0.2861467,105060.0,105050.0,0.71414]
[1750313132612,0.2861467,105060.0,105050.0,0.42264]
[1750313133018,0.2861467,105060.0,105040.0,0.03968]
[1750313133019,0.2545048,105050.0,105040.0,0.03968]
[1750313134353,0.2545048,105050.0,105040.0,0.23008365]
[1750313134555,0.2545048,105050.0,105040.0,0.23960374]
[1750313134737,0.2363238,105050.0,105040.0,0.23960374]
[1750313135195,0.2363238,105050.0,105040.0,0.25012374]
[1750313135616,0.2094238,105050.0,105040.0,0.40560374]
[1750313135839,0.2094238,105050.0,105040.0,0.04172]
[1750313136053,0.2774273,105050.0,105040.0,0.04172]
[1750313136261,0.2774273,105050.0,105040.0,0.02560258]
[1750313136488,0.2547048,105050.0,105040.0,0.02560258]
[1750313136703,0.1999048,105050.0,105040.0,0.22552641]
[1750313136913,0.1999048,105050.0,105040.0,0.23504641]
[1750313137121,0.1999048,105050.0,105040.0,0.24456632]
[1750313138208,0.2094238,105050.0,105040.0,0.24456632]
[1750313138619,0.2094238,105050.0,105040.0,0.25408614]
[1750313138824,0.2094238,105050.0,105040.0,0.26360586]
[1750313139059,0.2094238,105050.0,105040.0,0.29060586]
[1750313139252,0.2094238,105050.0,105040.0,0.29060531]
[1750313139457,0.01903827,105050.0,105040.0,0.29060531]
[1750313140092,0.2094238,105050.0,105040.0,0.29060531]
[1750313140704,0.2094238,105050.0,105040.0,0.29060485]
[1750313140909,0.2094238,105050.0,105040.0,0.31910485]
[1750313141114,0.2094238,105050.0,105040.0,0.30958531]
[1750313141570,0.2094238,105050.0,105040.0,0.30006568]
[1750313142148,0.01903827,105050.0,105040.0,0.31910485]
[1750313142354,0.02855682,105050.0,105040.0,0.31910485]
[1750313143679,0.01903773,105050.0,105040.0,0.31910485]
[1750313143915,0.02855682,105050.0,105040.0,0.31910485]
[1750313144160,0.01903773,105050.0,105040.0,0.31910485]
[1750313144389,0.01903773,105050.0,105040.0,0.70684661]
[1750313144390,0.01903719,105050.0,105040.0,0.70684661]
[1750313144611,0.2130751,105060.0,105050.0,0.27604208]
[1750313144612,0.00951773,105060.0,105050.0,0.27604208]
[1750313144844,0.02855328,105060.0,105050.0,0.43052208]
[1750313145303,0.03807146,105060.0,105050.0,0.43052208]
[1750313146177,0.03907146,105060.0,105050.0,0.43052208]
[1750313146390,0.04007146,105060.0,105050.0,0.43052208]
[1750313147024,0.04007137,105060.0,105050.0,0.43052208]
[1750313147656,0.03055328,105060.0,105050.0,0.43052208]
[1750313147867,0.04007137,105060.0,105050.0,0.43052208]
[1750313148510,0.04007137,105060.0,105050.0,0.52676384]
[1750313148511,0.002,105060.0,105050.0,0.52676384]
[1750313149442,0.002,105060.0,105050.0,0.81826384]
[1750313151706,0.002,105060.0,105050.0,0.83280469]
[1750313152386,0.39036315,105100.0,105080.0,0.21887974]
[1750313152607,0.26255604,105100.0,105080.0,0.25859974]
[1750313152849,0.03806188,105090.0,105080.0,0.25859974]
[1750313153079,0.04693951,105090.0,105080.0,0.25859974]
[1750313153299,0.08483802,105090.0,105080.0,0.25859974]
[1750313154409,0.07532173,105090.0,105080.0,0.25859974]
[1750313154640,0.07531627,105090.0,105080.0,0.25859974]
[1750313154868,0.08783174,105090.0,105080.0,0.25859974]
[1750313155097,0.08983174,105090.0,105080.0,0.25859974]
[1750313155555,0.0993473,105090.0,105080.0,0.25859974]
[1750313155975,0.08983174,105090.0,105080.0,0.25859974]
[1750313156187,0.0993473,105090.0,105080.0,0.25859974]
[1750313157842,0.08983174,105090.0,105080.0,0.28799974]
[1750313158065,0.09934739,105090.0,105080.0,0.25859974]
[1750313158270,0.08983174,105090.0,105080.0,0.25859974]
[1750313158479,0.0993473,105090.0,105080.0,0.31529974]
[1750313159111,0.08095938,105090.0,105080.0,0.31529974]
[1750313159324,0.07144391,105090.0,105080.0,0.31529974]
[1750313159537,0.07144382,105090.0,105080.0,0.31529974]
[1750313159748,0.06192853,105090.0,105080.0,0.31529974]
[1750313160945,0.06644382,105090.0,105080.0,0.31529974]
[1750313161135,0.05792853,105090.0,105080.0,0.31529974]
[1750313161339,0.04841343,105090.0,105080.0,0.31529974]
[1750313162204,0.03889851,105090.0,105080.0,0.4115415]
[1750313162413,0.001,105090.0,105080.0,0.4115415]
[1750313162622,0.01051483,105090.0,105080.0,0.4115415]
[1750313162832,0.05784071,105090.0,105080.0,0.4115415]
[1750313163066,0.03905996,105090.0,105080.0,0.4115415]
[1750313163281,0.04857534,105090.0,105080.0,0.4115415]
[1750313163484,0.04857525,105090.0,105080.0,0.4115415]
[1750313163708,0.21985938,105090.0,105070.0,0.25653748]
[1750313163928,0.27705938,105090.0,105080.0,0.03972]
[1750313164147,0.27705938,105090.0,105080.0,0.23956763]
[1750313164618,0.3162407,105090.0,105080.0,0.23956763]
[1750313164858,0.30672541,105090.0,105080.0,0.24908418]
[1750313165732,0.30672541,105090.0,105080.0,0.23956772]
[1750313165987,0.29721003,105090.0,105080.0,0.04923655]
[1750313166191,0.29721003,105090.0,105080.0,0.03972]
[1750313166422,0.3060775,105090.0,105080.0,0.03972]
[1750313167552,0.3060775,105090.0,105080.0,0.23005117]
[1750313167788,0.3060775,105090.0,105080.0,0.23956754]
[1750313168220,0.30608054,105090.0,105080.0,0.23956754]
[1750313168661,0.27798054,105090.0,105080.0,0.23956754]
[1750313169071,0.27798054,105090.0,105080.0,0.24908382]
[1750313170096,0.24888054,105090.0,105080.0,0.24908382]
[1750313170435,0.25839592,105090.0,105080.0,0.25860001]
[1750313171104,0.25839992,105090.0,105080.0,0.25860001]
[1750313171316,0.25839992,105090.0,105080.0,0.26811611]
[1750313171743,0.06808631,105090.0,105080.0,0.26811611]
[1750313171967,0.07760178,105090.0,105080.0,0.27763203]
[1750313172231,0.06808576,105090.0,105080.0,0.27763203]
[1750313172450,0.06872663,105090.0,105080.0,0.33523203]
[1750313172668,0.06872654,105090.0,105080.0,0.33523203]
[1750313173093,0.07824201,105090.0,105080.0,0.33523203]
[1750313173641,0.09663293,105090.0,105080.0,0.33523203]
[1750313174715,0.08775757,105090.0,105080.0,0.33523203]
[1750313174938,0.27743655,105090.0,105080.0,0.26811611]
[1750313175389,0.07760784,105090.0,105080.0,0.27763212]
[1750313175625,0.07760784,105090.0,105080.0,0.27763167]
[1750313176136,0.08712349,105090.0,105080.0,0.27763167]
[1750313177496,0.07760784,105090.0,105080.0,0.27763167]
[1750313177703,0.07760784,105090.0,105080.0,0.30503167]
[1750313177966,0.06809228,105090.0,105080.0,0.33393167]
[1750313178194,0.07760793,105090.0,105080.0,0.33393167]
[1750313178891,0.26792099,105090.0,105080.0,0.26811575]
[1750313179127,0.29065147,105090.0,105080.0,0.26811575]
[1750313179580,0.02273048,105090.0,105080.0,0.26811575]
[1750313179787,0.19031306,105090.0,105080.0,0.26811575]
[1750313179978,0.21304354,105090.0,105080.0,0.26811575]
[1750313180268,0.22255919,105090.0,105080.0,0.26811575]
[1750313180470,0.04176124,105090.0,105080.0,0.27763167]
[1750313180682,0.01903076,105090.0,105080.0,0.30763167]
[1750313180896,0.01903076,105090.0,105080.0,0.33603167]
[1750313181425,0.03681878,105090.0,105080.0,0.33603167]
[1750313182655,0.03681903,105090.0,105080.0,0.33603167]
[1750313183146,0.07588282,105090.0,105080.0,0.33603167]
[1750313183358,0.04633468,105090.0,105080.0,0.33603167]
[1750313183811,0.04633468,105090.0,105080.0,0.27763167]
[1750313184770,0.23664774,105090.0,105080.0,0.26811575]
[1750313185000,0.25937822,105090.0,105080.0,0.25860055]
[1750313185631,0.25937876,105090.0,105080.0,0.25860055]
[1750313186101,0.25937876,105090.0,105080.0,0.26811683]
[1750313187770,0.29576246,105090.0,105080.0,0.26811683]
[1750313188406,0.29576615,105090.0,105080.0,0.26811683]
[1750313188896,0.209364,105080.0,105070.0,0.70289748]
[1750313189141,0.209364,105080.0,105070.0,0.71488914]
[1750313189557,0.23213888,105080.0,105070.0,0.74438914]
[1750313189773,0.24165489,105080.0,105070.0,0.78350606]
[1750313190227,0.24165489,105080.0,105070.0,0.78450606]
[1750313190448,0.24165489,105080.0,105070.0,0.77498914]